Workbook

Sheet Лист1
B2: Q | C2: Подача | D2: Обратка | E2: ∆ | F2: Тп | G2: То | H2: ∆ | I2: Время
A3: пр | B3: 5102.853 | C3: 495361.8 | D3: 478439.4 | E3: 16882.6 | F3: 66.52 | G3: 58.52 | H3: 9.28 | I3: 68658
A5: 17 | B5: 0.25 | C5: 24.9 | D5: 23.9 | E5: =C5-D5 -> 1 | F5: 64.42 | G5: 54.34 | H5: =F5-G5 -> 10.08 | I5: 24 | J5: =C5*H5/1000 -> 0.250992
A6: 18 | B6: 0.26 | C6: 24.1 | D6: 23 | E6: =C6-D6 -> 1.1 | F6: 64.44 | G6: 53.62 | H6: =F6-G6 -> 10.82 | I6: 24 | J6: =C6*H6/1000 -> 0.260762
A7: 19 | B7: 0.26 | C7: 23 | D7: 22.1 | E7: 0.9 | F7: 67.58 | G7: 56 | H7: 11.58 | I7: 24 | J7: 0.26634
A8: 20 | B8: 0.25 | C8: 22.7 | D8: 21.7 | E8: 1 | F8: 68.07 | G8: 56.83 | H8: 11.24 | I8: 24 | J8: 0.255148
A9: 21 | B9: 0.25 | C9: 22.1 | D9: 21.1 | E9: 1 | F9: 65.58 | G9: 54 | H9: 11.58 | I9: 24 | J9: 0.255918
A10: 22 | B10: 0.32 | C10: 21.2 | D10: 20.4 | E10: 0.8 | F10: 64.77 | G10: 46.19 | H10: 18.58 | I10: 24 | J10: 0.393896
A11: 23 | B11: 1.14 | C11: 96.5 | D11: 98.6 | E11: -2.1 | F11: 62.63 | G11: 50.5 | H11: 12.13 | I11: 24 | J11: 1.170545
A12: 24 | B12: 2.11 | C12: 174.8 | D12: 183 | E12: -8.2 | F12: 64.39 | G12: 52.13 | H12: 12.26 | I12: 24 | J12: 2.143048
A13: 25 | B13: 2.17 | C13: 176.5 | D13: 184.1 | E13: -7.6 | F13: 65.56 | G13: 53.06 | H13: 12.5 | I13: 24 | J13: 2.20625
A14: 26 | B14: 2.15 | C14: 174.1 | D14: 181.2 | E14: -7.1 | F14: 66.84 | G14: 54.3 | H14: 12.54 | I14: 24 | J14: 2.183214
A15: 27 | B15: 1.83 | C15: 160.8 | D15: 167.9 | E15: -7.1 | F15: 62.8 | G15: 51.26 | H15: 11.54 | I15: 24 | J15: 1.855632
A16: 28 | B16: 1.92 | C16: 159.5 | D16: 167.3 | E16: -7.8 | F16: 64.97 | G16: 52.74 | H16: 12.23 | I16: 24 | J16: 1.950685
A17: 29 | B17: 1.96 | C17: 161.2 | D17: 170.5 | E17: -9.3 | F17: 67.04 | G17: 54.68 | H17: 12.36 | I17: 24 | J17: 1.992432
A18: 30 | B18: 2.01 | C18: 198.7 | D18: 207.1 | E18: -8.4 | F18: 66.17 | G18: 55.91 | H18: 10.26 | I18: 24 | J18: 2.038662
A19: 1 | B19: 2.12 | C19: 220.3 | D19: 228.1 | E19: -7.8 | F19: 67.99 | G19: 58.19 | H19: 9.8 | I19: 24 | J19: 2.15894
A20: 2 | B20: 2.1 | C20: 216.6 | D20: 222.6 | E20: -6 | F20: 67.03 | G20: 57.2 | H20: 9.83 | I20: 24 | J20: 2.129178
A21: 3 | B21: 2.15 | C21: 212.9 | D21: 219.5 | E21: -6.6 | F21: 67.31 | G21: 57.06 | H21: 10.25 | I21: 24 | J21: 2.182225
A22: 4 | B22: 2.08 | C22: 210.8 | D22: 216 | E22: -5.2 | F22: 66.67 | G22: 56.84 | H22: 9.83 | I22: 24 | J22: 2.072164
A23: 5 | B23: 2.08 | C23: 213.4 | D23: 217.3 | E23: -3.9 | F23: 66.35 | G23: 56.43 | H23: 9.92 | I23: 24 | J23: 2.116928
A24: 6 | B24: 2.21 | C24: 213.4 | D24: 216.9 | E24: -3.5 | F24: 66.36 | G24: 55.84 | H24: 10.52 | I24: 24 | J24: 2.244968
A25: 7 | B25: 2.21 | C25: 217.6 | D25: 221.7 | E25: -4.1 | F25: 68.32 | G25: 57.99 | H25: 10.33 | I25: 24 | J25: 2.247808
A26: 8 | B26: 1.99 | C26: 223.6 | D26: 229 | E26: -5.4 | F26: 65.87 | G26: 56.84 | H26: 9.03 | I26: 23.87 | J26: 2.019108
A27: 9 | B27: 1.97 | C27: 243 | D27: 248 | E27: -5 | F27: 63.55 | G27: 55.33 | H27: 8.22 | I27: 23.88 | J27: 1.99746
A28: 10 | B28: 2.25 | C28: 239 | D28: 243.1 | E28: -4.1 | F28: 67.3 | G28: 57.72 | H28: 9.58 | I28: 24 | J28: 2.28962
A29: 11 | B29: 2.07 | C29: 236.3 | D29: 239 | E29: -2.7 | F29: 64.15 | G29: 55.26 | H29: 8.89 | I29: 23.87 | J29: 2.100707
A30: 12 | B30: 2.36 | C30: 236 | D30: 238.7 | E30: -2.7 | F30: 66.38 | G30: 26.23 | H30: 40.15 | I30: 24 | J30: 9.4754
A31: 13 | B31: 2.32 | C31: 234.5 | D31: 236.3 | E31: -1.8 | F31: 67.76 | G31: 57.68 | H31: 10.08 | I31: 24 | J31: 2.36376
A32: 14 | B32: 2.33 | C32: 242 | D32: 243.7 | E32: -1.7 | F32: 67.92 | G32: 58.11 | H32: 9.81 | I32: 24 | J32: 2.37402
A33: 15 | B33: 2.35 | C33: 241.2 | D33: 242.4 | E33: -1.2 | F33: 68.1 | G33: 58.19 | H33: 9.91 | I33: 24 | J33: 2.390292
A34: Итого | B34: =SUM(B5:B33) -> 49.47 | C34: =SUM(C5:C33) -> 4840.7 | D34: 4954.2 | E34: -113.5 | F34: 66.1 | G34: 55.33 | H34: 10.77 | I34: =SUM(I5:I33) -> 695.62 | J34: =SUM(J5:J33) -> 57.386102
A36: Нештатная ситуация формула 7.4 МКУ 99пр | E36: Qкорр=Qраб /Т раб х Т ншт
A37: Штатная работа при времени 24 часа
A38: 1вариант
A39: Qраб= | B39: 49,47-1,99-1,97-2,087= | D39: =B34-B26-B27-B29 -> 43.44
A40: Т раб= | B40: 695,61-23,87-23,88-23,87= | D40: =I34-I26-I27-I29 -> 624
A41: Т ншт= | B41: 23,87+23,87+23,87= | D41: =I26+I27+I29 -> 71.62
A42: Qкорр= | B42: 43,44/624*71,61= | D42: =D39/D40*D41 -> 4.985853846
A43: Итого | B43: 43,44+4,99= | D43: =D39+D42 -> 48.42585385
A44: 2 вариант
A45: Qраб= | B45: =B34 -> 49.47
A46: Т ншт= | B46: 24х3-23,87-23,88-23,87= | D46: =24*3-I26-I27-I29 -> 0.38
A47: Т раб= | B47: =I34 -> 695.62
A48: Qкорр= | B48: 49,47/695,62х0,38= | D48: =B34/I34*D46 -> 0.02702423737
A50: Итого | B50: 49,47+0,027= | D50: =B34+D48 -> 49.49702424
